fUST/lending_fUST_20240924
["ID","MTS","AMOUNT","RATE_DAILY","PERIOD"]
[339060070,1727185848475,-978.1,0.00027397,2]
[339060072,1727185848484,-500.0,0.00027397,2]
[339060074,1727185848494,-500.0,0.00027397,2]
[339060076,1727185848503,-500.0,0.00027397,2]
[339060079,1727185848513,-500.0,0.00027397,2]
[339060080,1727185848524,-500.0,0.00027397,2]
[339060082,1727185848533,-501.14032465,0.00027397,2]
[339060084,1727185848542,-500.0,0.00027397,2]
[339060086,1727185848551,-500.0,0.00027397,2]
[339060088,1727185848560,-500.0,0.00027397,2]
[339060090,1727185848570,-500.0,0.00027397,2]
[339060092,1727185848580,-500.0,0.00027397,2]
[339060094,1727185848589,-500.0,0.00027397,2]
[339060096,1727185848599,-493.57023653,0.00027397,2]
[339060098,1727185848608,-500.0,0.00027397,2]
[339060100,1727185848618,-528.17,0.00027397,2]
[339060102,1727185848629,-500.0,0.00027397,2]
[339060104,1727185848638,-500.0,0.00027397,2]
[339060106,1727185848648,-500.0,0.00027397,2]
[339060109,1727185848659,-500.0,0.00027397,2]
[339060110,1727185848668,-500.0,0.00027397,2]
[339060113,1727185848678,-500.0,0.00027397,2]
[339060114,1727185848688,-500.0,0.00027397,2]
[339060116,1727185848697,-500.0,0.00027397,2]
[339060118,1727185848707,-500.0,0.00027397,2]
[339060121,1727185848717,-500.74564553,0.00027397,2]
[339060123,1727185848727,-500.0,0.00027397,2]
[339060125,1727185848737,-500.0,0.00027397,2]
[339060127,1727185848746,-500.0,0.00027397,2]
[339060129,1727185848755,-981.83,0.00027397,2]
[339060131,1727185848767,-500.0,0.00027397,2]
[339060133,1727185848776,-500.0,0.00027397,2]
[339060135,1727185848786,-501.48922209,0.00027397,2]
[339060137,1727185848796,-500.0,0.00027397,2]
[339060139,1727185848805,-500.0,0.00027397,2]
[339060140,1727185848814,-703.98,0.00027397,2]
[339060142,1727185848823,-500.0,0.00027397,2]
[339060144,1727185848832,-500.0,0.00027397,2]
[339060146,1727185848842,-504.11073104,0.00027397,2]
[339060148,1727185848852,-500.0,0.00027397,2]
[339060150,1727185848863,-500.0,0.00027397,2]
[339060152,1727185848873,-564.57,0.00027397,2]
[339060154,1727185848883,-539.25109064,0.00027397,2]
[339060156,1727185848893,-688.17,0.00027397,2]
[339060158,1727185848902,-647.27,0.00027397,2]
[339060160,1727185848912,-502.07676758,0.00027397,2]
[339060162,1727185848922,-500.0,0.00027397,2]
[339060164,1727185848933,-500.0,0.00027397,2]
[339060166,1727185848943,-500.0,0.00027397,2]
[339060168,1727185848954,-500.0,0.00027397,2]
[339060170,1727185848965,-500.0,0.00027397,2]
[339060172,1727185848974,-504.40742119,0.00027397,2]
[339060174,1727185848984,-500.0,0.00027397,2]
[339060176,1727185848993,-500.0,0.00027397,2]
[339060178,1727185849003,-500.0,0.00027397,2]
[339060180,1727185849012,-500.0,0.00027397,2]
[339060182,1727185849025,-500.0,0.00027397,2]
[339060184,1727185849035,-500.0,0.00027397,2]
[339060187,1727185849045,-587.94458263,0.00027397,2]
[339060189,1727185849058,-500.66697602,0.00027397,2]
[339060191,1727185849069,-500.0,0.00027397,2]
[339060192,1727185849078,-500.0,0.00027397,2]
[339060194,1727185849088,-500.0,0.00027397,2]
[339060196,1727185849098,-502.06937341,0.00027397,2]
[339060198,1727185849108,-327.38760364,0.00027397,2]
[339060200,1727185849117,-500.0,0.00027397,2]
[339060202,1727185849127,-500.0,0.00027397,2]
[339060204,1727185849136,-500.0,0.00027397,2]
[339060206,1727185849146,-500.0,0.00027397,2]
[339060208,1727185849156,-902.91,0.00027397,2]
[339060210,1727185849165,-519.82350704,0.00027397,2]
[339060212,1727185849175,-500.0,0.00027397,2]
[339060214,1727185849185,-517.74722692,0.00027397,2]
[339060216,1727185849195,-500.0,0.00027397,2]
[339060218,1727185849205,-500.0,0.00027397,2]
[339060220,1727185849214,-507.22148969,0.00027397,2]
[339060222,1727185849223,-500.0,0.00027397,2]
[339060224,1727185849233,-622.11555844,0.00027397,2]
[339060226,1727185849243,-501.30547021,0.00027397,2]
[339060228,1727185849253,-500.0,0.00027397,2]
[339060230,1727185849263,-500.0,0.00027397,2]
[339060231,1727185849274,-500.0,0.00027397,2]
[339060233,1727185849283,-500.0,0.00027397,2]
[339060235,1727185849292,-289.14045462,0.00027397,2]
[339060237,1727185849302,-561.92,0.00027397,2]
[339060239,1727185849311,-501.37752465,0.00027397,2]
[339060241,1727185849320,-500.0,0.00027397,2]
[339060243,1727185849331,-500.0,0.00027397,2]
[339060245,1727185849341,-500.0,0.00027397,2]
[339060247,1727185849354,-500.0,0.00027397,2]
[339060249,1727185849364,-541.31,0.00027397,2]
[339060251,1727185849374,-500.0,0.00027397,2]
[339060253,1727185849384,-500.0,0.00027397,2]
[339060255,1727185849394,-500.0,0.00027397,2]
[339060256,1727185849403,-500.0,0.00027397,2]
[339060257,1727185849412,-500.0,0.00027397,2]
[339060258,1727185849423,-500.0,0.00027397,2]
[339060259,1727185849432,-500.0,0.00027397,2]
[339060260,1727185849441,-500.0,0.00027397,2]
[339060261,1727185849451,-1788.93,0.00027397,2]
[339060262,1727185849461,-500.0,0.00027397,2]
[339060263,1727185849470,-503.1423404,0.00027397,2]
[339060264,1727185849479,-500.0,0.00027397,2]
[339060265,1727185849490,-500.0,0.00027397,2]
[339060266,1727185849500,-662.69,0.00027397,2]
[339060267,1727185849510,-502.33395048,0.00027397,2]
[339060268,1727185849522,-500.0,0.00027397,2]
[339060269,1727185849531,-500.0,0.00027397,2]
[339060270,1727185849540,-500.0,0.00027397,2]
[339060271,1727185849551,-500.0,0.00027397,2]
[339060272,1727185849562,-565.02579567,0.00027397,2]
[339060273,1727185849571,-1000.0,0.00027397,2]
[339060274,1727185849581,-500.0,0.00027397,2]
[339060275,1727185849590,-1884.85,0.00027397,2]
[339060276,1727185849600,-500.0,0.00027397,2]
[339060279,1727185849708,-500.0,0.00027397,2]
[339060280,1727185849717,-500.0,0.00027397,2]
[339060281,1727185849727,-500.0,0.00027397,2]
[339060282,1727185849736,-500.0,0.00027397,2]
[339060283,1727185849745,-500.0,0.00027397,2]
[339060284,1727185849755,-565.34763973,0.00027397,2]
[339060285,1727185849765,-500.0,0.00027397,2]
[339060286,1727185849776,-500.0,0.00027397,2]
[339060287,1727185849785,-500.0,0.00027397,2]
[339060288,1727185849795,-500.0,0.00027397,2]
[339060289,1727185849804,-500.0,0.00027397,2]
[339060290,1727185849813,-500.0,0.00027397,2]
[339060291,1727185849823,-500.0,0.00027397,2]
[339060292,1727185849833,-500.0,0.00027397,2]
[339060294,1727185849842,-500.0,0.00027397,2]
[339060296,1727185849852,-500.0,0.00027397,2]
[339060298,1727185849862,-503.3163915,0.00027397,2]
[339060300,1727185849871,-609.01913111,0.00027397,2]
[339060302,1727185849881,-501.09852175,0.00027397,2]
[339060304,1727185849892,-277.57675335,0.00027397,2]
[339060306,1727185849901,-151.0,0.00027397,7]
[339060308,1727185849910,-500.0,0.00027397,2]
[339060310,1727185849920,-500.0,0.00027397,2]
[339060312,1727185849929,-500.0,0.00027397,2]
[339060314,1727185849938,-514.74315799,0.00027397,2]
[339060316,1727185849947,-500.0,0.00027397,2]
[339060318,1727185849956,-500.0,0.00027397,2]
[339060320,1727185849966,-500.0,0.00027397,2]
[339060322,1727185849975,-151.0,0.00027397,7]
[339060323,1727185849984,-500.0,0.00027397,2]
[339060325,1727185849994,-500.0,0.00027397,2]
[339060328,1727185850005,-500.0,0.00027397,2]
[339060329,1727185850015,-500.0,0.00027397,2]
[339060331,1727185850026,-500.0,0.00027397,2]
[339060333,1727185850035,-500.0,0.00027397,2]
[339060336,1727185850045,-507.96085522,0.00027397,2]
[339060337,1727185850055,-500.0,0.00027397,2]
[339060338,1727185850066,-563.81,0.00027397,2]
[339060340,1727185850075,-637.77,0.00027397,2]
[339060342,1727185850084,-500.0,0.00027397,2]
[339060344,1727185850094,-504.20783662,0.00027397,2]
[339060345,1727185850103,-500.0,0.00027397,2]
[339060346,1727185850112,-500.0,0.00027397,2]
[339060347,1727185850123,-500.0,0.00027397,2]
[339060348,1727185850132,-298.58273,0.00027397,7]
[339060349,1727185850141,-500.0,0.00027397,2]
[339060350,1727185850150,-500.0,0.00027397,2]
[339060351,1727185850159,-500.0,0.00027397,2]
[339060352,1727185850169,-500.0,0.00027397,2]
[339060353,1727185850178,-500.0,0.00027397,2]
[339060354,1727185850188,-500.0,0.00027397,2]
[339060355,1727185850198,-298.58273,0.00027397,7]
[339060356,1727185850206,-500.0,0.00027397,2]
[339060357,1727185850215,-500.0,0.00027397,2]
[339060358,1727185850226,-500.0,0.00027397,2]
[339060359,1727185850237,-510.41999946,0.00027397,2]
[339060360,1727185850248,-500.0,0.00027397,2]
[339060361,1727185850259,-500.99657382,0.00027397,2]
[339060362,1727185850270,-838.89,0.00027397,2]
[339060363,1727185850279,-500.0,0.00027397,2]
[339060364,1727185850288,-500.0,0.00027397,2]
[339060365,1727185850297,-500.0,0.00027397,2]
[339060366,1727185850307,-500.0,0.00027397,2]
[339060367,1727185850318,-500.0,0.00027397,2]
[339060368,1727185850327,-500.0,0.00027397,2]
[339060369,1727185850338,-500.0,0.00027397,2]
[339060370,1727185850352,-375.0,0.00027397,2]
[339060371,1727185850362,-500.0,0.00027397,2]
[339060372,1727185850372,-500.0,0.00027397,2]
[339060373,1727185850382,-500.0,0.00027397,2]
[339060374,1727185850392,-500.0,0.00027397,2]
[339060375,1727185850401,-500.0,0.00027397,2]
[339060376,1727185850412,-928.12,0.00027397,2]
[339060377,1727185850422,-386.12984695,0.00027397,2]
[339060378,1727185850433,-500.0,0.00027397,2]
[339060379,1727185850443,-510.001769,0.00027397,2]
[339060380,1727185850454,-503.12882445,0.00027397,2]
[339060381,1727185850464,-588.89,0.00027397,2]
[339060382,1727185850473,-500.9254935,0.00027397,2]
[339060383,1727185850483,-500.0,0.00027397,2]
[339060384,1727185850492,-500.0,0.00027397,2]
[339060385,1727185850502,-1019.76,0.00027397,2]
[339060386,1727185850511,-500.0,0.00027397,2]
[339060387,1727185850523,-324.20641,0.00027397,7]
[339060388,1727185850532,-275.7651177,0.00027397,2]
[339060389,1727185850541,-499.94873059,0.00027397,2]
[339060390,1727185850550,-500.0,0.00027397,2]
[339060391,1727185850559,-500.0,0.00027397,2]
[339060392,1727185850569,-509.1873051,0.00027397,2]
[339060393,1727185850578,-324.20641,0.00027397,7]
[339060394,1727185850588,-500.0,0.00027397,2]
[339060395,1727185850599,-701.67,0.00027397,2]
[339060396,1727185850609,-500.0,0.00027397,2]
[339060397,1727185850619,-501.52301034,0.00027397,2]
[339060398,1727185850628,-500.0,0.00027397,2]
[339060399,1727185850638,-400.0,0.00027397,60]
[339060400,1727185850649,-243.61969,0.00027397,2]
[339060401,1727185850661,-150.0,0.00027397,5]
[339060402,1727185850670,-150.112233,0.000274,9]
[339060403,1727185850680,-500.0,0.00027409,7]
[339060404,1727185850690,-500.0,0.00027409,7]
[339060405,1727185850699,-500.0,0.00027409,7]
[339060406,1727185850708,-500.0,0.00027409,7]
[339060407,1727185850717,-500.0,0.00027409,7]
[339060408,1727185850726,-500.0,0.00027409,7]
[339060409,1727185850736,-500.0,0.00027409,7]
[339060410,1727185850745,-500.0,0.00027409,7]
[339060411,1727185850754,-500.0,0.00027409,7]
[339060412,1727185850764,-500.0,0.00027409,5]
[339060413,1727185850775,-500.0,0.00027409,7]
[339060414,1727185850784,-500.0,0.00027409,7]
[339060415,1727185850793,-500.90989726,0.00027409,7]
[339060416,1727185850802,-500.0,0.00027409,7]
[339060417,1727185850811,-501.56590567,0.00027409,7]
[339060418,1727185850821,-505.1415506,0.00027409,7]
[339060419,1727185850830,-500.0,0.00027409,7]
[339060420,1727185850839,-612.23932577,0.00027409,2]
[339060421,1727185850848,-1121.809827,0.00027409,7]
[339060422,1727185850858,-1121.809827,0.00027409,7]
[339060423,1727185850867,-1043.980229,0.00027409,7]
[339060424,1727185850876,-1043.980229,0.00027409,7]
[339060425,1727185850885,-151.0,0.00027409,7]
[339060426,1727185850895,-151.0,0.00027409,7]
[339060427,1727185850904,-371.286522,0.00027409,7]
[339060428,1727185850913,-371.286522,0.00027409,7]
[339060429,1727185850922,-495.53108,0.00027409,7]
[339060430,1727185850931,-190.876674,0.00027409,7]
[339060431,1727185850940,-190.876674,0.00027409,7]
[339060432,1727185850951,-495.53108,0.00027409,7]
[339060433,1727185850961,-1161.23088,0.00027409,7]
[339060434,1727185850970,-325.818599,0.00027409,7]
[339060435,1727185850980,-1161.23088,0.00027409,7]
[339060436,1727185850990,-325.818599,0.00027409,7]
[339060437,1727185850999,-6692.3739639,0.00027441,2]
[339060438,1727185851008,-250.0,0.00027521,5]
[339060439,1727185851019,-174.42764888,0.00027571,2]
[339060440,1727185851027,-151.0,0.00027661,7]
[339060441,1727185851038,-525.278445,0.00027661,7]
[339060442,1727185851047,-525.278445,0.00027661,7]
[339060443,1727185851056,-565.286814,0.00027661,7]
[339060444,1727185851066,-430.058416,0.00027661,7]
[339060445,1727185851076,-565.286814,0.00027661,7]
[339060446,1727185851085,-430.058416,0.00027661,7]
[339060447,1727185851094,-151.0,0.00027661,7]
[339060448,1727185851105,-426.315147,0.00027661,7]
[339060449,1727185851113,-151.0,0.00027661,7]
[339060450,1727185851122,-151.0,0.00027661,7]
[339060451,1727185851131,-1344.762998,0.00027661,7]
[339060452,1727185851142,-426.315147,0.00027661,7]
[339060453,1727185851151,-203.694936,0.00027661,7]
[339060454,1727185851162,-1344.762998,0.00027661,7]
[339060455,1727185851171,-825.571215,0.00027661,7]
[339060456,1727185851180,-825.571215,0.00027661,7]
[339060457,1727185851189,-151.0,0.00027661,2]
[339060458,1727185851199,-331.266376,0.00027661,7]
[339060459,1727185851210,-227.781587,0.00027661,7]
[339060460,1727185851222,-331.266376,0.00027661,7]
[339060461,1727185851232,-240.90618,0.00027661,7]
[339060462,1727185851242,-240.90618,0.00027661,7]
[339060463,1727185851251,-500.0,0.00027671,7]
[339060464,1727185851262,-500.0,0.00027671,7]
[339060465,1727185851273,-619.91523917,0.00027671,7]
[339060466,1727185851282,-500.0,0.00027671,7]
[339060467,1727185851292,-786.36,0.00027671,7]
[339060468,1727185851301,-500.0,0.00027671,7]
[339060469,1727185851311,-500.0,0.00027671,7]
[339060470,1727185851409,-500.0,0.00027671,2]
[339060471,1727185851419,-500.0,0.00027671,7]
[339060472,1727185851428,-500.0,0.00027671,7]
[339060473,1727185851438,-822.91,0.00027671,7]
[339060474,1727185851447,-500.0,0.00027671,7]
[339060475,1727185851456,-500.0,0.00027671,7]
[339060476,1727185851465,-664.95,0.00027671,7]
[339060477,1727185851474,-500.0,0.00027671,7]
[339060478,1727185851483,-500.0,0.00027671,7]
[339060479,1727185851492,-500.0,0.00027671,7]
[339060480,1727185851502,-500.0,0.00027671,5]
[339060481,1727185851512,-720.13,0.00027671,7]
[339060482,1727185851523,-512.88355131,0.00027671,7]
[339060483,1727185851532,-637.03,0.00027671,7]
[339060484,1727185851541,-856.26,0.00027671,7]
[339060485,1727185851551,-500.0,0.00027671,7]
[339060486,1727185851561,-501.97164928,0.00027671,7]
[339060487,1727185851571,-503.13643154,0.00027671,7]
[339060488,1727185851580,-528.4,0.00027671,7]
[339060489,1727185851589,-500.0,0.00027671,7]
[339060490,1727185851599,-502.45947572,0.00027671,7]
[339060491,1727185851608,-500.0,0.00027671,7]
[339060492,1727185851619,-500.0,0.00027671,7]
[339060493,1727185851630,-500.0,0.00027671,7]
[339060494,1727185851641,-500.0,0.00027671,7]
[339060495,1727185851652,-500.0,0.00027671,7]
[339060496,1727185851661,-500.0,0.00027671,7]
[339060497,1727185851671,-495.19674095,0.00027671,7]
[339060498,1727185851680,-500.0,0.00027671,7]
[339060499,1727185851689,-500.0,0.00027671,7]
[339060500,1727185851698,-500.0,0.00027671,7]
[339060501,1727185851707,-500.0,0.00027671,7]
[339060502,1727185851717,-500.0,0.00027671,7]
[339060503,1727185851726,-500.0,0.00027671,7]
[339060504,1727185851735,-500.0,0.00027671,7]
[339060505,1727185851744,-550.65,0.00027671,7]
[339060506,1727185851753,-500.0,0.00027671,7]
[339060507,1727185851762,-500.0,0.00027671,7]
[339060508,1727185851772,-500.0,0.00027671,7]
[339060509,1727185851782,-646.01773383,0.00027671,7]
[339060510,1727185851793,-502.29900255,0.00027671,7]
[339060511,1727185851803,-500.0,0.00027671,7]
[339060512,1727185851812,-500.0,0.00027671,7]
[339060513,1727185851822,-500.0,0.00027671,2]
[339060514,1727185851832,-512.58600691,0.00027671,7]
[339060515,1727185851841,-500.0,0.00027671,7]
[339060516,1727185851850,-500.0,0.00027671,7]
[339060517,1727185851859,-500.0,0.00027671,7]
[339060518,1727185851868,-500.0,0.00027671,7]
[339060519,1727185851877,-500.0,0.00027671,7]
[339060520,1727185851886,-500.0,0.00027671,7]
[339060521,1727185851895,-500.0,0.00027671,7]
[339060522,1727185851904,-574.18,0.00027671,7]
[339060523,1727185851915,-505.02646907,0.00027671,7]
[339060524,1727185851926,-500.0,0.00027671,7]
[339060525,1727185851936,-501.49048532,0.00027671,7]
[339060526,1727185851946,-500.0,0.00027671,7]
[339060527,1727185851956,-503.73969096,0.00027671,7]
[339060528,1727185851967,-510.7760242,0.00027671,7]
[339060529,1727185851976,-252.30196833,0.00027671,7]
[339060530,1727185851986,-500.0,0.00027671,7]
[339060531,1727185851995,-502.11004212,0.00027671,7]
[339060532,1727185852005,-500.0,0.00027671,7]
[339060533,1727185852015,-312.26371433,0.00027671,7]
[339060534,1727185852025,-500.0,0.00027671,7]
[339060535,1727185852034,-536.26,0.00027671,7]
[339060536,1727185852044,-500.0,0.00027671,7]
[339060537,1727185852053,-500.0,0.00027671,7]
[339060538,1727185852063,-500.0,0.00027671,7]
[339060539,1727185852072,-500.0,0.00027671,7]
[339060540,1727185852081,-779.29,0.00027671,7]
[339060541,1727185852091,-500.0,0.00027671,7]
[339060542,1727185852100,-500.0,0.00027671,7]
[339060543,1727185852109,-503.58108156,0.00027671,7]
[339060544,1727185852120,-500.0,0.00027671,7]
[339060545,1727185852130,-500.0,0.00027671,7]
[339060546,1727185852142,-981.24,0.00027671,7]
[339060547,1727185852152,-605.11500216,0.00027671,7]
[339060548,1727185852163,-500.0,0.00027671,7]
[339060549,1727185852172,-500.0,0.00027671,7]
[339060550,1727185852182,-514.11894362,0.00027671,7]
[339060551,1727185852191,-500.0,0.00027671,7]
[339060552,1727185852200,-500.0,0.00027671,7]
[339060553,1727185852209,-500.0,0.00027671,7]
[339060554,1727185852218,-668.98,0.00027671,7]
[339060555,1727185852228,-500.0,0.00027671,7]
[339060556,1727185852238,-506.27358347,0.00027671,7]
[339060557,1727185852248,-667.57,0.00027671,7]
[339060558,1727185852258,-1224.72,0.00027671,7]
[339060559,1727185852267,-500.0,0.00027671,7]
[339060560,1727185852280,-500.0,0.00027671,7]
[339060561,1727185852289,-846.35,0.00027671,7]
[339060562,1727185852298,-523.09,0.00027671,7]
[339060563,1727185852307,-500.0,0.00027671,7]
[339060564,1727185852317,-368.14,0.00027671,7]
[339060565,1727185852326,-508.18012479,0.00027671,7]
[339060566,1727185852337,-832.28,0.00027671,2]
[339060567,1727185852349,-539.78,0.00027671,7]
[339060568,1727185852358,-500.0,0.00027671,7]
[339060569,1727185852367,-500.0,0.00027671,7]
[339060570,1727185852376,-500.0,0.00027671,7]
[339060571,1727185852386,-500.0,0.00027671,7]
[339060572,1727185852396,-500.0,0.00027671,7]
[339060573,1727185852405,-500.0,0.00027671,7]
[339060574,1727185852415,-510.06908255,0.00027671,7]
[339060575,1727185852425,-834.7,0.00027671,7]
[339060576,1727185852436,-500.0,0.00027671,7]
[339060577,1727185852447,-500.0,0.00027671,7]
[339060578,1727185852458,-500.0,0.00027671,7]
[339060579,1727185852468,-510.64478386,0.00027671,7]
[339060580,1727185852476,-882.2,0.00027671,7]
[339060581,1727185852485,-500.0,0.00027671,7]
[339060582,1727185852495,-286.29444115,0.00027671,7]
[339060583,1727185852503,-574.09059517,0.00027671,7]
[339060584,1727185852514,-500.0,0.00027671,7]
[339060585,1727185852528,-500.0,0.00027671,7]
[339060586,1727185852541,-500.0,0.00027671,7]
[339060587,1727185852552,-500.0,0.00027671,7]
[339060588,1727185852564,-179.14149306,0.00027671,7]
[339060589,1727185852574,-700.78,0.00027671,7]
[339060590,1727185852583,-500.0,0.00027671,7]
[339060591,1727185852592,-500.51387881,0.00027671,7]
[339060592,1727185852601,-923.88,0.00027671,7]
[339060593,1727185852610,-500.0,0.00027671,7]
[339060594,1727185852619,-500.0,0.00027671,7]
[339060595,1727185852628,-500.0,0.00027671,7]
[339060596,1727185852638,-500.0,0.00027671,7]
[339060597,1727185852647,-500.0,0.00027671,7]
[339060598,1727185852657,-500.0,0.00027671,7]
[339060599,1727185852666,-500.0,0.00027671,7]
[339060600,1727185852675,-699.55,0.00027671,7]
[339060601,1727185852684,-500.0,0.00027671,7]
[339060602,1727185852693,-504.50687444,0.00027671,7]
[339060603,1727185852703,-501.55739511,0.00027671,7]
[339060604,1727185852712,-500.0,0.00027671,7]
[339060605,1727185852723,-500.0,0.00027671,7]
[339060606,1727185852733,-151.0,0.00027671,7]
[339060607,1727185852744,-500.0,0.00027671,2]
[339060608,1727185852755,-151.0,0.00027671,7]
[339060609,1727185852765,-500.0,0.00027671,7]
[339060610,1727185852778,-513.26154922,0.00027671,7]
[339060611,1727185852788,-500.0,0.00027671,7]
[339060612,1727185852797,-500.0,0.00027671,7]
[339060613,1727185852806,-949.76,0.00027671,7]
[339060614,1727185852815,-233.28080608,0.00027671,7]
[339060615,1727185852825,-500.0,0.00027671,7]
[339060616,1727185852834,-501.16542175,0.00027671,5]
[339060617,1727185852843,-500.0,0.00027671,7]
[339060618,1727185852853,-500.0,0.00027671,7]
[339060619,1727185852862,-603.71,0.00027671,7]
[339060620,1727185852871,-300.133387,0.00027671,7]
[339060621,1727185852880,-500.0,0.00027671,7]
[339060622,1727185852889,-500.0,0.00027671,7]
[339060623,1727185852983,-500.0,0.00027671,7]
[339060624,1727185852992,-500.0,0.00027671,7]
[339060625,1727185853001,-500.0,0.00027671,7]
[339060626,1727185853011,-500.0,0.00027671,7]
[339060627,1727185853022,-500.0,0.00027671,7]
[339060628,1727185853032,-683.94,0.00027671,7]
[339060629,1727185853044,-509.00136768,0.00027671,7]
[339060630,1727185853054,-940.34,0.00027671,7]
[339060631,1727185853066,-1000.0,0.00027671,7]
[339060632,1727185853076,-500.0,0.00027671,7]
[339060633,1727185853085,-151.0,0.00027671,7]
[339060634,1727185853095,-502.7912257,0.00027671,7]
[339060635,1727185853104,-151.0,0.00027671,7]
[339060636,1727185853112,-154.219427,0.00027671,7]
[339060637,1727185853121,-354.51,0.00027671,7]
[339060638,1727185853130,-797.23,0.00027671,7]
[339060639,1727185853139,-500.0,0.00027671,7]
[339060640,1727185853149,-151.0,0.00027671,7]
[339060641,1727185853158,-500.0,0.00027671,7]
[339060642,1727185853167,-523.77,0.00027671,7]
[339060643,1727185853176,-154.219427,0.00027671,7]
[339060644,1727185853187,-500.0,0.00027671,7]
[339060645,1727185853197,-634.21,0.00027671,7]
[339060646,1727185853208,-500.0,0.00027671,7]
[339060647,1727185853218,-500.0,0.00027671,7]
[339060648,1727185853228,-151.0,0.00027671,7]
[339060649,1727185853239,-510.32081032,0.00027671,7]
[339060650,1727185853250,-151.0,0.00027671,7]
[339060651,1727185853260,-500.0,0.00027671,7]
[339060652,1727185853272,-500.0,0.00027671,7]
[339060653,1727185853281,-500.0,0.00027671,7]
[339060654,1727185853290,-500.0,0.00027671,7]
[339060655,1727185853300,-500.0,0.00027671,7]
[339060656,1727185853309,-500.0,0.00027671,7]
[339060657,1727185853319,-151.0,0.00027671,7]
[339060658,1727185853328,-500.0,0.00027671,7]
[339060659,1727185853338,-151.0,0.00027671,7]
[339060660,1727185853350,-151.0,0.00027671,7]
[339060661,1727185853362,-151.0,0.00027671,7]
[339060662,1727185853371,-500.0,0.00027671,7]
[339060663,1727185853380,-500.0,0.00027671,7]
[339060664,1727185853391,-500.92755039,0.00027671,7]
[339060665,1727185853400,-500.0,0.00027671,7]
[339060666,1727185853409,-500.0,0.00027671,7]
[339060667,1727185853419,-500.0,0.00027671,7]
[339060668,1727185853428,-500.0,0.00027671,7]
[339060669,1727185853438,-500.0,0.00027671,7]
[339060670,1727185853447,-322.523896,0.00027671,7]
[339060671,1727185853456,-500.0,0.00027671,7]
[339060672,1727185853465,-322.523896,0.00027671,7]
[339060673,1727185853474,-500.0,0.00027671,7]
[339060674,1727185853483,-500.0,0.00027671,7]
[339060675,1727185853492,-774.11,0.00027671,7]
[339060676,1727185853502,-500.0,0.00027671,7]
[339060677,1727185853511,-500.0,0.00027671,7]
[339060678,1727185853521,-500.0,0.00027671,7]
[339060679,1727185853531,-500.0,0.00027671,7]
[339060680,1727185853540,-151.0,0.00027671,2]
[339060681,1727185853550,-500.0,0.00027671,7]
[339060682,1727185853559,-532.41,0.00027671,7]
[339060683,1727185853568,-519.04,0.00027671,7]
[339060684,1727185853578,-994.06,0.00027671,7]
[339060685,1727185853587,-751.74,0.00027671,7]
[339060686,1727185853597,-248.80975726,0.00027671,7]
[339060687,1727185853606,-641.08,0.00027671,7]
[339060688,1727185853615,-500.0,0.00027671,7]